Cogmind - Beta 11 @@@ ROGUE MODE // 2022.04.22 @ 03:40:47 Player: 123nick Result: Destroyed by Y-45 Defender with Heavy Assault Rifle Performance ------------- Evolutions (2) 1000 Regions Visited (5) 1000 Robots Destroyed (19) 95 Value Destroyed (670) 670 Prototype IDs (1) 20 Alien Tech Used (0) 0 Bonus (159) 159 TOTAL SCORE: 2944 Bonus ------- Follower Combat Kills 159 Cogmind --------- Core Integrity 0/550 Matter 264/300 Energy 95/100 System Corruption 0% Temperature Cool (27) Movement Treading (480) Ox4 Location -8/Materials Parts ------- > --- POWER (2) -------- (None) > --- PROPULSION (3) --- Light Treads > --- UTILITY (4) ------ Huge Storage Unit Improved Targeting Computer > --- WEAPON (2) ------- EM Pulse Gun Light Assault Rifle > --- INVENTORY (25) --- Flight Unit Heat Sink Small Storage Unit High-capacity Matter Pod (200) Improved Targeting Computer Assault Rifle Mining Laser Peak State ------------ > --- POWER ------------ Light Ion Engine Light Nuclear Core > --- PROPULSION ------- Aluminum Leg Carbon-fiber Leg Carbon-fiber Leg > --- UTILITY ---------- Huge Storage Unit Weight Redist. System Improved Targeting Computer Improved Targeting Computer > --- WEAPON ----------- Advanced Beam Rifle Beamcaster > --- INVENTORY -------- Light Ion Engine Light Treads Flight Unit Heat Sink Small Storage Unit High-capacity Matter Pod Improved Targeting Computer EM Pulse Gun Beam Rifle EM Pulse Cannon EM Pulse Cannon Assault Rifle Light Assault Rifle Shotgun Mining Laser [Rating: 29] Favorites ----------- Power Light Ion Engine Engine Light Ion Engine Power Core Light Nuclear Core Propulsion Wheel Treads Light Treads Leg Aluminum Leg Wheel Wheel Flight Unit Flight Unit Utility Improved Targeting Computer Device Seismic Detector Storage Medium Storage Unit Processor Improved Targeting Computer Weapon Assault Rifle Energy Gun Medium Laser Energy Cannon EM Pulse Cannon Ballistic Gun Assault Rifle Build | -11 -10 -10 -10 -9 -8 ------- Run | Scr Mat Min Exi Min Mat Slots Evolved 4 | . . . . . 4 Power 1 | . . . . . 1 Propulsion 1 | . . . . . 1 Utility 2 | . . . . . 2 Weapon . | . . . . . . Parts Attached 37 | 7 . 4 . 6 20 Power 5 | 1 . . . 1 3 Engine 4 | 1 . . . 1 2 Core 1 | . . . . . 1 Reactor . | . . . . . . Propulsion 11 | 2 . 4 . . 5 Treads 1 | . . . . . 1 Leg 4 | . . . . . 4 Wheel 4 | 2 . 2 . . . Hover . | . . . . . . Flight 2 | . . 2 . . . Utility 9 | 2 . . . 3 4 Device 2 | 1 . . . . 1 Storage 5 | 1 . . . 3 1 Processor 2 | . . . . . 2 Hackware . | . . . . . . Protection . | . . . . . . Artifact . | . . . . . . Weapon 12 | 2 . . . 2 8 Energy Gun 5 | 1 . . . . 4 Energy Cannon 2 | . . . . . 2 Ballistic Gun 5 | 1 . . . 2 2 Ballistic Cannon . | . . . . . . Launcher . | . . . . . . Special Weapon . | . . . . . . Impact Weapon . | . . . . . . Slashing Weapon . | . . . . . . Piercing Weapon . | . . . . . . Special Melee Weapon . | . . . . . . Unidentified Prototypes 1 | . . . . . 1 Parts Lost 14 | . . . . . 14 Power 3 | . . . . . 3 Propulsion 3 | . . . . . 3 Utility 2 | . . . . . 2 Weapon 6 | . . . . . 6 Highest Loss Streak 12 | . . . . . 12 To Critical Strikes . | . . . . . . Average Slot Usage (%) 92 | . 100 100 100 100 75 Engine 11 | . 14 14 14 14 6 Core 1 | . . . . . 5 Leg 4 | . . . . . 14 Wheel 19 | . 28 20 28 28 2 Device 6 | . 14 14 14 2 6 Storage 18 | . 14 14 14 25 10 Processor 4 | . . . . . 12 Energy Gun 6 | . 14 14 14 2 6 Ballistic Gun 16 | . 14 14 14 25 7 Naked Turns . | . . . . . . Heaviest Build 102 | 9 9 9 9 22 102 Greatest Support 46 | 20 20 20 20 20 46 Greatest Overweight (x) 28 | . . 1 . 1 28 Average Overweight (x) . | . . . . . 1 Largest Inventory Capacity 25 | 5 5 5 5 10 25 Average Capacity 11 | 5 5 5 5 9 22 Most Carried 15 | 5 5 5 5 10 15 Average Carried 7 | 2 4 4 4 7 10 Final Capacity 25 | 5 5 5 5 10 25 Final Carried 7 | 5 5 5 4 7 7 Class Distribution -------------------- 93% | Mutant 6% | Scavenger-Mutant Dominant Class ---------------- Mutant | -10/Materials Mutant | -10/Mines Mutant | -10/Exiles Mutant | -9/Mines Mutant | -8/Materials Resources | -11 -10 -10 -10 -9 -8 ----------- Run | Scr Mat Min Exi Min Mat Matter Collected 792 | 284 75 20 . 132 281 Remotely . | . . . . . . Salvage Created 826 | 104 31 . . 10 681 Parts 40 | 13 1 . . 3 23 Haulers Intercepted . | . . . . . . Recyclers Shooed 2 | . . . . . 2 Parts Field Recycled . | . . . . . . Retrieved Matter . | . . . . . . Parts Self-Destructed . | . . . . . . Prevented . | . . . . . . Kills | -11 -10 -10 -10 -9 -8 ------- Run | Scr Mat Min Exi Min Mat Combat Hostiles Destroyed 15 | 1 1 . . 1 12 Guns 12 | 1 1 . . 1 9 Cannons 1 | . . . . . 1 AOE 1 | . . . . . 1 Classes Destroyed 7 | 3 . . . 1 3 Worker 1 | 1 . . . . . Tunneler 2 | 2 . . . . . Recycler 1 | . . . . . 1 Swarmer 1 | . . . . 1 . Grunt 12 | 1 1 . . . 10 Brawler 1 | . . . . . 1 Hunter 1 | . . . . . 1 Best Kill Streak 5 | 4 1 . . 1 5 Combat Bots Only 5 | 1 1 . . 1 5 Max Kills in Single Turn 1 | 1 1 . . 1 1 Gunslinging . | . . . . . . Exploded 1 | . . . . . 1 Melee . | . . . . . . Uniques/NPCs Destroyed . | . . . . . . Combat | -11 -10 -10 -10 -9 -8 -------- Run | Scr Mat Min Exi Min Mat Damage Taken 2234 | 12 213 2 . 74 1933 Core 668 | . 74 2 . 28 564 Absorbed by Shields . | . . . . . . Core Remaining (%) 79 | 100 . . . 58 . Volleys Fired 69 | 5 8 . . 2 54 Largest 2 | 2 2 . . 2 2 Hottest 136 | 70 70 . . 70 136 Shots Fired 114 | 10 16 . . 4 84 Gun 110 | 10 16 . . 4 80 Cannon 4 | . . . . . 4 Launcher . | . . . . . . Special . | . . . . . . Kinetic 43 | 5 8 . . 2 28 Thermal 61 | 5 8 . . 2 46 Explosive . | . . . . . . Electromagnetic 10 | . . . . . 10 Robot Hit Streak 15 | 4 5 . . 7 15 Robot Miss Streak 2 | 1 2 . . 1 2 Penetration Max . | . . . . . . Secondary Targets 1 | . . . . . 1 Max Gunslinging Chain 1 | . . . . . 1 Shots Hit Robots 88 | 7 10 . . 3 68 Core Hits 38 | 5 4 . . 1 28 Critical Kills . | . . . . . . Critical Parts Destroyed . | . . . . . . Critical Strikes 4 | . 1 . . . 3 Burn 4 | . 1 . . . 3 Melee Attacks . | . . . . . . Impact . | . . . . . . Slashing . | . . . . . . Piercing . | . . . . . . Sneak Attacks . | . . . . . . Combat Hostiles . | . . . . . . Follow-up Attacks . | . . . . . . Damage Inflicted 1581 | 87 134 4 . 37 1319 Guns 1345 | 87 134 . . 37 1087 Cannons 106 | . . . . . 106 Explosions 110 | . . . . . 110 Melee . | . . . . . . Ramming 20 | . . 4 . . 16 Kinetic 390 | 24 62 . . 25 279 Thermal 978 | 63 72 . . 12 831 Explosive . | . . . . . . Electromagnetic 193 | . . . . . 193 Impact . | . . . . . . Slashing . | . . . . . . Piercing . | . . . . . . Highest Corruption . | . . . . . . Average Corruption . | . . . . . . Corruption Purged . | . . . . . . Corruption Blocked . | . . . . . . Overload Shots . | . . . . . . Overflow Damage . | . . . . . . Projectiles . | . . . . . . Explosions . | . . . . . . Melee . | . . . . . . Knockbacks 1 | . . . . . 1 Impact 1 | . . . . . 1 Kinetic . | . . . . . . Secondary . | . . . . . . Self-Inflicted Damage 2 | . . 2 . . . Shots . | . . . . . . Rammed 1 | . . 1 . . . Targets Rammed 2 | . . 1 . . 1 Kicked 1 | . . . . . 1 Crushed . | . . . . . . Highest Temperature 406 | 18 174 . . 9 406 Average Temperature 137 | 7 92 . . 6 158 Received Heat Transfer 1266 | 6 117 . . . 1143 Effects 4 | . . . . . 4 Shutdowns 2 | . . . . . 2 Interference 1 | . . . . . 1 Matter Decay 1 | . . . . . 1 Siege Activations . | . . . . . . Robots Corrupted . | . . . . . . Combat Hostiles . | . . . . . . Parts Fried . | . . . . . . Impact Corruptions . | . . . . . . Robots Melted 1 | . . . . . 1 Combat Hostiles 1 | . . . . . 1 Parts Melted 4 | . . . . . 4 Heat Transferred 2246 | 185 296 . . 37 1728 Parts Sabotaged . | . . . . . . Parts Stolen . | . . . . . . Parts Stripped . | . . . . . . Power Chain Reactions 1 | . . . . . 1 Missiles Intercepted . | . . . . . . Alert | -11 -10 -10 -10 -9 -8 ------- Run | Scr Mat Min Exi Min Mat Peak Influence 180 | 38 115 44 . 149 180 Initial 44 | . 24 44 . . . Average 78 | 10 69 44 . 93 84 Maximum Alert Level . | . . . . . . Low Security (%) 100 | 100 100 100 . 100 100 Level 1 . | . . . . . . Level 2 . | . . . . . . Level 3 . | . . . . . . Level 4 . | . . . . . . Level 5 . | . . . . . . High Security . | . . . . . . Max Security . | . . . . . . Squads Dispatched 8 | . 4 1 . . 3 Investigation 2 | . 2 . . . . Extermination . | . . . . . . Reinforcement 5 | . 2 . . . 3 Assault 1 | . . 1 . . . Garrison . | . . . . . . Intercept . | . . . . . . Searches Triggered . | . . . . . . Construction Impeded . | . . . . . . Haulers Reinforced . | . . . . . . Active Scanning Responses . | . . . . . . Cargo Convoy Interrupts . | . . . . . . Stealth | -11 -10 -10 -10 -9 -8 --------- Run | Scr Mat Min Exi Min Mat Distress Signals 2 | . . . . . 2 Communications Jammed . | . . . . . . Distress Signals . | . . . . . . Times Spotted 45 | 1 10 . . 10 24 Peak Tracking Total 7 | . 4 . . 4 7 Tactical Retreats 4 | . 1 . . 1 2 Traps | -11 -10 -10 -10 -9 -8 ------- Run | Scr Mat Min Exi Min Mat Traps Triggered 1 | . 1 . . . . Indirectly . | . . . . . . Trap Hack Attempts . | . . . . . . Triggered . | . . . . . . Disarmed . | . . . . . . Reprogrammed . | . . . . . . Reused . | . . . . . . Traps Extracted . | . . . . . . Installed . | . . . . . . Triggered . | . . . . . . Machines | -11 -10 -10 -10 -9 -8 ---------- Run | Scr Mat Min Exi Min Mat Machines Disabled 1 | . . . . . 1 Max in Single Turn 1 | . . . . . 1 Machines Sabotaged . | . . . . . . Garrisons Compromised . | . . . . . . Overloaded Fab Kills . | . . . . . . Hacking | -11 -10 -10 -10 -9 -8 --------- Run | Scr Mat Min Exi Min Mat Machines Accessed 2 | . 2 . . . . Terminals 2 | . 2 . . . . Fabricators . | . . . . . . Repair Stations . | . . . . . . Recycling Units . | . . . . . . Scanalyzers . | . . . . . . Garrison Access . | . . . . . . Total Hacks 6 | . 6 . . . . Successful 5 | . 5 . . . . Failed 1 | . 1 . . . . Catastrophic . | . . . . . . Database Lockouts . | . . . . . . Manual . | . . . . . . Terminals 6 | . 6 . . . . Fabricators . | . . . . . . Repair Stations . | . . . . . . Recycling Units . | . . . . . . Scanalyzers . | . . . . . . Garrison Access . | . . . . . . Terminal Hacks 5 | . 5 . . . . Robot Analysis 1 | . 1 . . . . Recycling Unit Index 1 | . 1 . . . . Alert Level 3 | . 3 . . . . Fabricator Hacks . | . . . . . . Repair Station Hacks . | . . . . . . Recycling Unit Hacks . | . . . . . . Scanalyzer . | . . . . . . Garrison Access Hacks . | . . . . . . Unauthorized Hacks . | . . . . . . Terminals . | . . . . . . Fabricators . | . . . . . . Repair Stations . | . . . . . . Recycling Units . | . . . . . . Scanalyzers . | . . . . . . Garrison Access . | . . . . . . Data Cores Recovered . | . . . . . . Used . | . . . . . . Hacking Detections 2 | . 2 . . . . Full Trace Events 1 | . 1 . . . . Feedback Events . | . . . . . . Feedback Blocked . | . . . . . . Robot Schematics Acquired . | . . . . . . Robots Built . | . . . . . . Authchips . | . . . . . . Time . | . . . . . . Total Robot Build Rating . | . . . . . . Part Schematics Acquired . | . . . . . . Parts Built . | . . . . . . Authchips . | . . . . . . Time . | . . . . . . Total Part Build Rating . | . . . . . . Parts Repaired . | . . . . . . Time . | . . . . . . Parts Recycled . | . . . . . . Recycled Matter . | . . . . . . Retrieved Matter . | . . . . . . Retrieved Components . | . . . . . . Parts Scanalyzed . | . . . . . . Part Schematics Acquired . | . . . . . . Parts Damaged . | . . . . . . Bothacking | -11 -10 -10 -10 -9 -8 ------------ Run | Scr Mat Min Exi Min Mat Used RIF Installer . | . . . . . . Robots Hacked . | . . . . . . Non-combat . | . . . . . . Combat . | . . . . . . Robot Hacks Applied . | . . . . . . Relay Couplers Released . | . . . . . . Fabnet Peak Effective % . | . . . . . . Robots Rewired . | . . . . . . Allies Hacked . | . . . . . . Hacks Repelled . | . . . . . . Allies | -11 -10 -10 -10 -9 -8 -------- Run | Scr Mat Min Exi Min Mat Total Allies 4 | . . 1 . 3 . Largest Group 4 | . . 1 1 4 3 Highest-Rated Group 109 | . . 31 31 109 93 Highest-Rated Ally 31 | . . 31 31 31 31 Total Orders . | . . . . . . Ally Attacks 35 | . . . . 21 14 Total Damage 530 | . . . . 277 253 Kills 11 | . . . . 8 3 Allies Corrupted . | . . . . . . Allies Melted . | . . . . . . Intel | -11 -10 -10 -10 -9 -8 ------- Run | Scr Mat Min Exi Min Mat Robot Analysis Total 1 | . 1 . . . . Derelict Logs Recovered 1 | . . . . 1 . Drone Launches . | . . . . . . Drone Recoveries . | . . . . . . Exploration | -11 -10 -10 -10 -9 -8 ------------- Run | Scr Mat Min Exi Min Mat Turns Passed 2077 | 126 222 182 87 827 633 Spaces Moved 1378 | 119 204 153 38 709 155 Core 22 | 18 . . . . 4 Treads . | . . . . . . Legs 103 | . . . . . 103 Wheels 1217 | 101 204 117 38 709 48 Hover . | . . . . . . Flight 36 | . . 36 . . . Fastest Speed 50 | 50 80 80 80 80 80 Average Speed 97 | 75 80 88 80 83 214 Slowest Speed 1450 | 80 80 117 80 95 1450 Overloaded Moves . | . . . . . . Propulsion Burnouts . | . . . . . . Robots Hopped . | . . . . . . Cave-ins Triggered . | . . . . . . Exploration Rate (%) 34 | 6 32 52 9 97 12 Regions Visited 5 Branch Regions 3 Pre-discovered Areas 1 | . . . . 1 . Known Exits Taken . | . . . . . . Unknown Exits Taken 5 | 1 1 1 1 1 . Scrap Searched 3 | . . 1 . 2 . Spaces Dug . | . . . . . . Terrain Destroyed 4 | . . . . . 4 Melee . | . . . . . . Projectile . | . . . . . . AOE 4 | . . . . . 4 Terrain Rammed . | . . . . . . Walls Destroyed . | . . . . . . Machines Disabled . | . . . . . . Actions | -11 -10 -10 -10 -9 -8 --------- Run | Scr Mat Min Exi Min Mat Total 2004 | 146 248 197 95 944 374 Wait 437 | . 31 36 55 203 112 Move 1373 | 118 203 152 37 708 155 Hop . | . . . . . . Pick Up 56 | 14 3 2 1 14 22 Fast Attach . | . . . . . . Attach 20 | 7 . . . . 13 Detach . | . . . . . . Swap 17 | . . 4 . 6 7 Drop 30 | 2 3 2 2 11 10 Fire 69 | 5 8 . . 2 54 Melee . | . . . . . . Ram 1 | . . 1 . . . Kick 1 | . . . . . 1 Crush . | . . . . . . Escape Stasis . | . . . . . . Rewire . | . . . . . . Trap . | . . . . . . Miscellaneous . | . . . . . . Route ------- -11/Scrapyard -10/Materials (discovered 2 exits: [*Mat] / [*Min]) -10/Mines (discovered 2 exits: [*Mat] / [*Exi]) -10/Exiles -9/Mines (discovered 2 exits: [*Mat x2]) -8/Materials (discovered 1 exit: Fac) History --------- Turn | Location | Event 2 | -11/Scrapyard | Met Revision 17 88 | -11/Scrapyard | Discovered new exit (range 8) 127 | -11/Scrapyard | Entered Materials 197 | -10/Materials | Discovered new exit (range 16) 256 | -10/Materials | Met 8R-AWN 269 | -10/Materials | Discovered new exit (range 8) 337 | -10/Materials | Build established: Mutant 349 | -10/Materials | Entered Mines 350 | -10/Mines | Followed 8R-AWN into the Mines 512 | -10/Mines | Discovered new exit (range 5) 513 | -10/Mines | Met a Derelict testing a Signal Generator 527 | -10/Mines | Discovered new exit (range 5) 531 | -10/Mines | Entered Exiles 531 | -10/Exiles | Accompanied by 1 ally 601 | -10/Exiles | Discovered new exit (range 15) 618 | -10/Exiles | Entered Mines 618 | -9/Mines | Accompanied by 1 ally 624 | -9/Mines | Escorted by a lone wolf Derelict 644 | -9/Mines | Learned location of Storage (-8) 703 | -9/Mines | Learned location of 1 exit from Materials 1035 | -9/Mines | Discovered new exit (range 8) 1081 | -9/Mines | Discovered new exit (range 15) 1445 | -9/Mines | Entered Materials 1445 | -8/Materials | Accompanied by 3 allies 1445 | -8/Materials | Evolved 4 slots: Power x1, Propulsion x1, Utility x2 1446 | -8/Materials | Identified exit to Factory 1450 | -8/Materials | Led the pair of lost Derelicts to an unsafe place 1907 | -8/Materials | Core integrity fell below 50% 1945 | -8/Materials | Core integrity fell below 20% 1957 | -8/Materials | Lost 12 parts (3p3n2u4w) 2078 | -8/Materials | Destroyed by Y-45 Defender with Heavy Assault Rifle Last Messages --------------- U-05 Engineer lays Concrete. EM Pulse Cannon destroyed. U-05 Engineer builds a Wall. G-47 Trooper destroyed. U-05 Engineer lays Concrete. U-05 Engineer builds a Wall. Acquired 45 matter. R-06 Scavenger collects Assault Rifle. R-06 Scavenger collects Aluminum Leg. EM Pulse Cannon destroyed. R-06 Scavenger collects Corrupted Aluminum Leg. K-01 Serf collects debris. R-06 Scavenger collects Corrupted Aluminum Leg. R-06 Scavenger collects Particle Gun. K-01 Serf collects debris. G-47 Trooper IFF system glitched. G-47 Trooper destroyed. R-06 Scavenger collects Imp. Heat Sink. W-25 Informer sends out distress signal. Critical hit (Burn: +37). Map ----- +----------------------------------------------------+ | ???????????????????? ??########???????????????? | | ???????????????????? ??# = #???????????????? | | ???????????????????#"" ??# ! #???????????????? | | ???????????????????#"Y ??#" """ #???????????????? | | ????????????????????"" ??#T """ #???????????????? | | ????????????????????? ??#" """ #??????########## | | ????????????????????###"### #??????# #*! | | ????????????????????# ##+############ # | | ????????????????????# [ = # | | ????????????????????# [!% =!%* + | | ????????????????????# [!%!*[%![ # | | ????????????????????#![!% ##+############ # !! | | ????????????????????###!### **#?????????# ###### | | ??????????????????????#%#?#=T%#?????????# #????? | | ??????????????????????#%#?# #?????????# #????? | | ??????????????????????#%#?# #?????????# #????? | | ??????????????????????#%#?# #?????????# #????? | | ??????????????????????# #?# #?????????# #????? | | ??????????????????????#%#?# #?????????# #????? | | ??????????????????????# #?#####?????????# #????? | | ??????????????????????#!#???????????????# #????? | | ??????????????????????# #???????????????# #????? | | ??????????????????????#%#???????????????# #????? | | ???????????????########%###?????????????+ #????? | | ???????????????# % ###### """ ?# #????? | | ???????????????# ! @%a %+= # #????? | | ???????????????# []]% ###### # #????? | | ???????????????# =!#?????????????? #????? | | ???????????????# ]] #?????????????? ?????? | | ???????????????# #??????????????????????? | | ???????????????# #??????????????????????? | | ????????????? Y#??????????????????????? | | ?????????? !%* +??????????????????????? | | ?????????# #??????????????????????? | | ?????????# #??????????????????????? | | ?????????#] %! #??????????????????????? | | ?????????# !! #??????????????????????? | | ?????????? """ ! #??????????????????????? | | ?????????? """"" #??????????????????????? | | ??????????????""" #??????????????????????? | | ???????????????? w #??????????????????????? | | ???????????????? ??????????????????????? | | ?????????????????? ??????????????????????? | | ???????????????????? ????????????????????????? | | ?????????????????????????????????????????????????? | | ?????????????????????????????????????????????????? | | ?????????????????????????????????????????????????? | | ?????????????????????????????????????????????????? | | ?????????????????????????????????????????????????? | | ?????????????????????????????????????????????????? | +----------------------------------------------------+ Best States ------------- Heat Dissipation 31 Energy Generation 19 Energy Capacity 185 Matter Stores 500 Matter Capacity 500 Sight Range 16 Terrain Scan Density 10 Additional Mass Support 6 Evasion (%) 50 Targeting Accuracy 12 Item Schematics ----------------- None Robot Schematics ------------------ None Fabricated ------------ Nothing Alien Tech Used ----------------- None Achievements -------------- Crack Shot It's Just You Risk Taker Tourist Challenges ------------ None Game ------ Seed SpliceRefineryStorage Manual? 0 Play Time 00:23:50 Cumulative 1.3 hours Start 2022.04.22 @ 03:16:50 End 2022.04.22 @ 03:40:47 Sessions 1 Manual Loads 0 Difficulty Rogue Special Mode None Game No. 2 Rogue 2 Adventurer 0 Explorer 0 Win Type - Total 0 Types 0/0/0/0/0/0/0/0/0 Lore% 1 Gallery% 3 Achievement% 5 Wizard Run 0 Options --------- ASCII 0 Keyboard 0 Movement Numpad Keybinds 0 Fullscreen 1 Font 18/SmallcapsGlow Map View 76x50 Tactical HUD 0 Map Filters NONE Filters NONE Steam 0 RUN: 2245374a-1e59-4cd8-931a-4e9f95000eb0